bitfinex-derivatives/quotes_BNBF0:USTF0_20250326
["timestamp","ask_amount","ask_price","bid_price","bid_amount"]
[1742989953318,0.422,632.58,631.7,1.18176292]
[1742989953624,0.27530665,632.55,631.7,1.18176292]
[1742989954220,0.27530665,632.55,631.71,1.18176292]
[1742989956427,0.422,632.58,631.71,1.18176292]
[1742989956723,0.27530557,632.54,631.71,1.18176292]
[1742989957928,0.27530557,632.54,631.7,1.18176292]
[1742989959427,0.423,632.53,631.7,1.18176292]
[1742989962132,0.423,632.53,631.45,1.18176292]
[1742989962133,0.423,632.53,631.75,1.18176292]
[1742989963227,0.2752827,632.52,631.75,1.18176292]
[1742989964027,0.2752827,632.52,631.45,1.00999417]
[1742989964028,0.2752827,632.52,631.74,1.18176292]
[1742989965333,0.423,632.53,631.74,1.18176292]
[1742989965833,0.27528597,632.51,631.74,1.18176292]
[1742989966234,0.27528597,632.51,631.82,1.18176292]
[1742989968437,0.423,632.53,631.83,1.18176292]
[1742989968839,0.27527072,632.5,631.83,1.18176292]
[1742989970636,0.27527072,632.5,631.81,1.18176292]
[1742989971339,0.423,632.53,631.81,1.18176292]
[1742989971740,0.27527181,632.49,631.81,1.18176292]
[1742989972841,0.27527181,632.49,631.82,1.18176292]
[1742989974438,0.423,632.53,631.82,1.18176292]
[1742989974640,0.27527072,632.48,631.82,1.18176292]
[1742989975238,0.27527072,632.48,631.74,1.18176292]
[1742989977347,0.423,632.53,631.74,1.18176292]
[1742989977541,0.27527181,632.47,631.74,1.18176292]
[1742989977743,0.27527181,632.47,631.76,1.18176292]
[1742989980448,0.423,632.53,631.76,1.18176292]
[1742989980746,0.27525984,632.49,631.76,1.18176292]
[1742989981150,0.27525984,632.49,631.77,0.26341639]
[1742989982951,0.27525984,632.49,631.85,1.18176292]
[1742989983148,0.27525984,632.49,631.86,0.26341639]
[1742989983351,0.31614055,632.63,631.87,0.26339168]
[1742989983547,0.27523915,632.49,631.85,1.18176292]
[1742989983747,0.27523915,632.49,631.86,0.26339572]
[1742989984054,0.31614055,632.63,631.86,0.26339572]
[1742989984459,0.31614055,632.63,631.86,1.44515864]
[1742989984657,0.31614055,632.63,631.87,0.26339572]
[1742989985257,0.27514775,632.62,631.87,0.26339572]
[1742989985955,0.423,632.61,631.87,0.26339572]
[1742989986353,0.423,632.61,631.86,1.18176292]
[1742989986554,0.2752348,632.6,631.87,0.26337909]
[1742989987951,0.2752348,632.6,631.86,1.18176292]
[1742989988155,0.2752348,632.6,631.87,0.26330436]
[1742989988451,0.2752348,632.6,631.86,1.18176292]
[1742989989258,0.2752348,632.6,631.84,1.18176292]
[1742989989463,0.423,632.61,631.84,1.18176292]
[1742989989762,0.27523589,632.59,631.84,1.18176292]
[1742989991057,0.27523589,632.59,631.6,0.27523589]
[1742989991058,0.27523589,632.59,631.74,1.18176292]
[1742989991263,0.27523589,632.59,631.75,0.26319145]
[1742989992365,0.423,632.61,631.75,0.26319145]
[1742989992560,0.27524895,632.58,631.75,0.26319145]
[1742989992762,0.27524895,632.58,631.74,1.18176292]
[1742989992965,0.27524895,632.58,631.75,0.26321544]
[1742989993562,0.27524895,632.58,631.74,1.18176292]
[1742989995268,0.423,632.61,631.74,1.18176292]
[1742989995565,0.423,632.61,631.69,1.18176292]
[1742989995769,0.2752533,632.57,631.69,1.18176292]
[1742989997269,0.2752533,632.57,631.7,0.26327788]
[1742989998071,0.2752533,632.57,631.71,0.26327788]
[1742989998266,0.423,632.61,631.72,0.26327788]
[1742989998467,0.423,632.61,631.69,0.26327788]
[1742989998673,0.27527072,632.56,631.68,1.18176292]
[1742989998872,0.27527072,632.56,631.69,0.2632853]
[1742989999975,0.27527072,632.56,631.72,1.18176292]
[1742990001271,0.423,632.61,631.72,1.18176292]
[1742990001675,0.2752729,632.55,631.72,1.18176292]
[1742990002269,0.2752729,632.55,631.71,1.18176292]
[1742990002473,0.2752729,632.55,631.72,0.26333063]
[1742990004372,0.31614055,632.63,631.72,0.26333063]
[1742990004678,0.27527181,632.54,631.81,1.18176292]
[1742990004878,0.31614055,632.63,631.81,1.18176292]
[1742990006478,0.27518909,632.62,631.81,1.18176292]
[1742990006978,0.27518909,632.62,631.82,1.18176292]
[1742990007478,0.31614055,632.63,631.82,1.18176292]
[1742990007679,0.69825984,632.61,631.82,1.18176292]
[1742990008679,0.69825984,632.61,631.64,1.18176292]
[1742990010279,0.423,632.61,631.64,1.18176292]
[1742990010780,0.2753121,632.6,631.64,1.18176292]
[1742990011079,0.2753121,632.6,631.54,1.18176292]
[1742990012682,0.2753121,632.6,631.55,0.26347696]
[1742990013481,0.423,632.61,631.51,1.18176292]
[1742990013775,0.27532299,632.59,631.52,0.26347977]
[1742990014976,0.27532299,632.59,631.51,1.18176292]
[1742990015177,0.29059734,632.58,631.52,0.2634819]
[1742990015582,0.29059734,632.58,631.51,0.2634819]
[1742990015783,0.29059734,632.58,631.52,0.2634819]
[1742990015984,0.29059734,632.58,631.51,0.2634819]
[1742990016180,0.29059734,632.58,631.52,0.2634819]
[1742990016380,0.29059734,632.58,631.53,0.2634819]
[1742990016585,0.27532953,632.57,631.51,0.2634819]
[1742990016785,0.29059734,632.56,631.52,0.2634819]
[1742990017087,0.27532953,632.57,631.53,0.2634819]
[1742990017284,0.27532953,632.57,631.5,1.18176292]
[1742990017285,0.27532953,632.57,631.51,0.2634819]
[1742990017486,0.27532953,632.57,631.61,1.18176292]
[1742990017786,0.27532953,632.57,631.62,0.2634819]
[1742990019289,0.423,632.61,631.62,0.2634819]
[1742990019587,0.27531537,632.56,631.62,0.2634819]
[1742990019783,0.27531537,632.56,631.55,0.2634819]
[1742990019988,0.27531537,632.56,631.56,0.2634819]
[1742990020189,0.27531537,632.56,631.55,0.2634819]
[1742990020385,0.27531537,632.56,631.56,0.2634819]
[1742990020591,0.27531537,632.56,631.55,0.2634819]
[1742990020790,0.27531537,632.56,631.56,0.2634819]
[1742990021090,0.27531537,632.56,631.57,0.2634819]
[1742990021291,0.27531537,632.56,631.55,0.2634819]
[1742990021590,0.27531537,632.56,631.56,0.2634819]
[1742990021791,0.27531537,632.56,631.55,0.2634819]
[1742990021993,0.27531537,632.56,631.38,0.27531537]
[1742990021994,0.27531537,632.56,631.56,0.2634819]
[1742990022187,0.27531537,632.56,631.54,0.2634819]
[1742990022389,0.423,632.61,631.54,0.2634819]
[1742990022690,0.27532844,632.55,631.54,0.2634819]
[1742990024889,0.27532844,632.55,631.5,0.2634819]
[1742990025091,0.423,632.54,631.5,0.2634819]
[1742990025690,0.27533933,632.53,631.5,0.2634819]
[1742990027095,0.27533933,632.53,631.48,0.2634819]
[1742990027395,0.27533933,632.53,631.49,0.2634819]
[1742990027596,0.27533933,632.53,631.47,1.18176292]
[1742990027793,0.27533933,632.53,631.48,0.26349966]
[1742990027989,0.27533933,632.53,631.47,1.18176292]
[1742990028395,0.423,632.54,631.47,1.18176292]
[1742990028595,0.27534477,632.52,631.47,1.18176292]
[1742990028795,0.27534477,632.52,631.44,1.49849926]
[1742990028992,0.27534477,632.52,631.45,0.26350407]
[1742990031298,0.423,632.54,631.45,0.26350407]
[1742990031695,0.27534804,632.51,631.45,0.26350407]
[1742990032498,0.27534804,632.51,631.46,0.26350246]
[1742990032691,0.27534804,632.51,631.46,1.18176292]
[1742990032893,0.27534804,632.51,631.47,0.26350246]
[1742990034502,0.423,632.54,631.47,0.26350246]
[1742990034694,0.27534586,632.5,631.47,0.26350246]
[1742990035497,0.27534586,632.5,631.47,1.44526538]
[1742990035692,0.27534586,632.5,631.48,0.26350246]
[1742990037299,0.423,632.54,631.48,0.26350246]
[1742990037697,0.423,632.54,631.51,1.18176292]
[1742990037698,0.27535349,632.49,631.51,1.18176292]
[1742990037894,0.27535349,632.49,631.52,0.26350246]
[1742990038904,0.27535349,632.49,631.51,1.18176292]
[1742990039901,0.27535349,632.49,631.52,1.18176292]
[1742990040305,0.423,632.54,631.52,1.18176292]
[1742990040510,0.31619053,632.53,631.52,1.18176292]
[1742990040711,0.27536329,632.48,631.52,1.18176292]
[1742990043312,0.31619053,632.53,631.52,1.18176292]
[1742990043511,0.423,632.47,631.52,1.18176292]
[1742990043712,0.69836438,632.47,631.52,1.18176292]
[1742990044712,0.69836438,632.47,631.53,0.26352668]
[1742990044910,0.69836438,632.47,631.53,1.4452896]
[1742990045108,0.69836438,632.47,631.53,1.18176292]
[1742990045815,0.69836438,632.47,631.54,0.26353217]
[1742990047010,0.69836438,632.47,631.57,1.18176292]
[1742990048914,0.69836438,632.47,631.55,1.18176292]
[1742990050614,0.69836438,632.47,631.56,1.18176292]
[1742990052017,0.69836438,632.47,631.51,1.18176292]
[1742990052317,0.423,632.47,631.51,1.18176292]
[1742990052717,0.27537201,632.46,631.51,1.18176292]
[1742990054018,0.27537201,632.46,631.5,1.18176292]
[1742990055216,0.27537201,632.46,631.51,0.26353163]
[1742990055719,0.27537201,632.46,631.5,1.18176292]
[1742990056314,0.27537201,632.46,631.53,1.18176292]
[1742990058322,0.423,632.47,631.53,1.18176292]
[1742990058822,0.27536983,632.45,631.51,1.18176292]
[1742990061225,0.27536983,632.45,631.45,1.18176292]
[1742990061725,0.31623553,632.44,631.45,1.18176292]
[1742990064027,0.31623553,632.44,631.44,0.31673634]
[1742990064722,0.27539598,632.43,631.44,0.31673634]
[1742990065829,0.29068057,632.42,631.45,0.26356559]
[1742990067631,0.29068057,632.43,631.45,0.26356559]
[1742990067830,0.27539925,632.41,631.45,0.26356559]
[1742990068132,0.27539925,632.41,631.48,1.18176292]
[1742990070328,0.31623553,632.44,631.48,1.18176292]
[1742990070528,0.29067777,632.43,631.48,1.18176292]
[1742990070825,0.27539053,632.4,631.49,0.2635624]
[1742990071329,0.27539053,632.4,631.48,1.18176292]
[1742990071730,0.27539053,632.4,631.5,1.18176292]
[1742990073632,0.423,632.39,631.5,1.18176292]
[1742990073932,0.423,632.39,631.45,1.18176292]
[1742990076734,0.27539707,632.38,631.46,1.18176292]
[1742990079436,0.423,632.39,631.46,1.18176292]
[1742990080637,0.27539162,632.38,631.46,1.18176292]
[1742990082043,0.27539162,632.38,631.47,0.26356052]
[1742990082538,0.423,632.39,631.48,0.26356256]
[1742990082844,0.27539707,632.37,631.48,0.26356256]
[1742990083543,0.27539707,632.37,631.47,1.18176292]
[1742990084143,0.27539707,632.37,631.55,1.18176292]
[1742990085441,0.423,632.39,631.55,1.18176292]
[1742990085842,0.27538726,632.36,631.55,1.18176292]
[1742990086043,0.27538726,632.36,631.5,1.18176292]
[1742990088341,0.423,632.39,631.5,1.18176292]
[1742990088748,0.27539271,632.35,631.49,1.18176292]
[1742990091446,0.423,632.39,631.49,1.18176292]
[1742990092048,0.27538835,632.38,631.49,1.18176292]
[1742990094446,0.423,632.39,631.49,1.18176292]
[1742990094642,0.423,632.39,631.51,1.18176292]
[1742990094943,0.2753938,632.37,631.51,1.18176292]
[1742990097451,0.423,632.39,631.54,1.18176292]
[1742990097850,0.27539162,632.36,631.54,1.18176292]
[1742990100356,0.423,632.39,631.54,1.18176292]
[1742990100751,0.2753829,632.38,631.54,1.18176292]
[1742990100954,0.2753829,632.38,631.44,0.31673634]
[1742990103358,0.31623553,632.44,631.44,0.31673634]
[1742990103663,0.27540034,632.37,631.44,0.31673634]
[1742990105368,0.423,632.36,631.44,0.31673634]
[1742990106865,0.27540579,632.35,631.44,0.31673634]
[1742990107777,0.27540579,632.35,631.45,0.26356168]
[1742990108973,0.27540579,632.35,631.64,1.18176292]
[1742990109472,0.423,632.36,631.64,1.18176292]
[1742990109880,0.27538073,632.34,631.64,1.18176292]
[1742990110673,0.27538073,632.34,631.62,1.18176292]
[1742990112472,0.423,632.36,631.62,1.18176292]
[1742990112870,0.2753829,632.33,631.62,1.18176292]
[1742990115474,0.423,632.36,631.62,1.18176292]
[1742990115971,0.2753829,632.32,631.62,1.18176292]
[1742990117269,0.2753829,632.32,631.51,1.18176292]
[1742990118575,0.423,632.36,631.51,1.18176292]
[1742990118776,0.27539489,632.31,631.51,1.18176292]
[1742990119470,0.27539489,632.31,631.44,0.31673634]
[1742990119471,0.27539489,632.31,631.52,1.18176292]
[1742990121078,0.27539489,632.31,631.51,1.18176292]
[1742990121378,0.423,632.36,631.51,1.18176292]
[1742990121777,0.27539489,632.3,631.51,1.18176292]
[1742990122979,0.27539489,632.3,631.52,1.18176292]
[1742990124480,0.423,632.36,631.52,1.18176292]
[1742990124782,0.2753938,632.29,631.52,1.18176292]
[1742990125588,0.2753938,632.29,631.5,1.18176292]
[1742990127496,0.423,632.36,631.5,1.18176292]
[1742990127892,0.27539598,632.28,631.5,1.18176292]
[1742990128089,0.27539598,632.28,631.44,0.31673634]
[1742990128090,0.27539598,632.28,631.46,1.18176292]
[1742990128290,0.423,632.36,631.46,1.18176292]
[1742990128993,0.27539162,632.35,631.46,1.18176292]
[1742990132295,0.27539162,632.35,631.31,1.18176292]
[1742990133495,0.423,632.36,631.31,1.18176292]
[1742990133892,0.27543195,632.34,631.31,1.18176292]
[1742990136397,0.31623553,632.44,631.31,1.18176292]
[1742990136898,0.31623553,632.44,631.32,1.18176292]
[1742990137807,0.27531754,632.43,631.32,1.18176292]
[1742990138107,0.73924553,632.42,631.32,1.18176292]
[1742990138299,0.31625053,632.41,631.32,1.18176292]
[1742990138996,0.31625053,632.41,631.29,1.18176292]
[1742990140800,0.31625053,632.41,631.31,1.18176292]
[1742990142599,0.31625053,632.41,631.15,1.18176292]
[1742990143697,0.27545811,632.4,631.15,1.18176292]
[1742990143897,0.31626053,632.39,631.15,1.18176292]
[1742990144296,0.31626053,632.39,631.13,1.18176292]
[1742990145797,0.27546247,632.38,631.13,1.18176292]
[1742990145994,0.31627053,632.37,631.13,1.18176292]
[1742990146398,0.31627053,632.37,631.11,1.18176292]
[1742990148999,0.31627053,632.37,623.76,4.03598532]
[1742990149000,0.31627053,632.37,631.12,1.18176292]
[1742990149801,0.27546138,632.36,631.12,1.18176292]
[1742990149995,0.31628054,632.35,631.12,1.18176292]
[1742990150195,0.31628054,632.35,631.13,0.26362586]
[1742990150502,0.29074201,632.34,631.13,0.26362586]
[1742990150699,0.31629054,632.33,631.13,0.26362586]
[1742990151398,0.29074011,632.32,631.13,0.26362586]
[1742990151795,0.29074011,632.32,631.12,0.26362586]
[1742990152003,0.29074011,632.32,631.13,0.26362586]
[1742990152200,0.29074011,632.32,631.12,0.26362586]
[1742990152396,0.31630054,632.31,631.13,0.26362586]
[1742990152603,0.29074011,632.3,631.12,0.26362586]
[1742990152809,0.31631055,632.29,631.13,0.26362586]
[1742990153104,0.31631055,632.29,631.14,0.26362586]
[1742990153303,0.29075139,632.28,631.12,0.26362586]
[1742990153504,0.31632055,632.27,631.27,1.18176292]
[1742990153705,0.29075139,632.26,631.28,0.26362586]
[1742990154105,0.31633056,632.25,631.28,0.26362586]
[1742990155207,0.31633056,632.25,631.29,0.26362586]
[1742990155406,0.31633056,632.25,631.24,1.18176292]
[1742990155601,0.31633056,632.25,631.25,0.26364634]
[1742990156007,0.31633056,632.25,631.26,0.26364641]
[1742990156307,0.31633056,632.25,631.27,0.26364641]
[1742990156608,0.31633056,632.25,631.24,1.18176292]
[1742990156609,0.31633056,632.25,631.28,0.26364641]
[1742990156801,0.31633056,632.25,631.25,0.26364641]
[1742990157002,0.31633056,632.25,631.24,1.18176292]
[1742990157205,0.31633056,632.25,631.25,0.26364593]
[1742990157706,0.31633056,632.25,631.26,0.26364205]
[1742990157908,0.31633056,632.25,631.24,0.26364205]
[1742990158103,0.31633056,632.25,631.25,0.26364205]
[1742990158310,0.31633056,632.25,631.24,0.26364205]
[1742990158510,0.31633056,632.25,631.25,0.26364205]
[1742990158705,0.27546247,632.24,631.24,0.26364205]
[1742990159010,0.27546247,632.24,631.25,0.26364205]
[1742990159202,0.27546247,632.24,631.24,0.26364205]
[1742990159404,0.27546247,632.24,631.25,0.26364205]
[1742990160406,0.31633056,632.25,631.25,0.26364205]
[1742990160903,0.27546138,632.24,631.25,0.26364205]
[1742990161507,0.31633056,632.25,631.25,0.26364205]
[1742990162209,0.31633056,632.25,631.24,1.18176292]
[1742990162411,0.31633056,632.25,631.25,1.44540417]
[1742990162713,0.31633056,632.25,631.26,0.26364125]
[1742990163611,0.423,632.24,631.26,0.26364125]
[1742990164514,0.423,632.24,631.28,1.18176292]
[1742990164710,0.423,632.24,631.29,0.26364125]
[1742990165715,0.29075885,632.23,631.29,0.26364125]
[1742990167016,0.423,632.24,631.29,0.26364125]
[1742990167314,0.29075825,632.23,631.32,1.18176292]
[1742990167518,0.29075825,632.23,631.33,0.26364125]
[1742990168521,0.423,632.24,631.32,1.18176292]
[1742990168717,0.29075851,632.23,631.33,0.2636424]
[1742990169423,0.29075851,632.23,631.33,1.44540532]
[1742990169724,0.29075851,632.23,631.34,0.2636424]
[1742990169922,0.423,632.24,631.33,1.18176292]
[1742990171523,0.423,632.24,624.31,5.6853906]
[1742990171524,0.423,632.24,631.28,1.18176292]
[1742990173525,0.423,632.24,630.68,2.41276597]
[1742990173526,0.423,632.24,631.31,1.18176292]
[1742990175724,0.423,632.24,631.33,1.18176292]
[1742990177727,0.29075837,632.23,631.34,0.26364227]
[1742990178425,0.29075837,632.23,631.36,1.18176292]
[1742990180732,0.29075837,632.23,631.43,1.18176292]
[1742990181529,0.27546029,632.22,631.43,1.18176292]
[1742990181729,0.29075837,632.21,631.43,1.18176292]
[1742990183230,0.29075837,632.21,631.44,1.18176292]
[1742990184034,0.423,632.2,631.44,1.18176292]
[1742990184734,0.27546138,632.19,631.44,1.18176292]
[1742990184935,0.27546138,632.19,631.39,1.18176292]
[1742990187235,0.27546138,632.19,631.36,1.18176292]
[1742990187432,0.423,632.2,631.36,1.18176292]
[1742990187832,0.27547882,632.18,631.36,1.18176292]
[1742990190538,0.423,632.2,631.36,1.18176292]
[1742990190738,0.275481,632.17,631.36,1.18176292]
[1742990191939,0.275481,632.17,631.33,1.18176292]
[1742990193637,0.275481,632.17,631.01,1.18176292]
[1742990196043,0.275481,632.17,631.03,1.18176292]
[1742990196436,0.423,632.2,631.03,1.18176292]
[1742990196642,0.27551699,632.16,631.03,1.18176292]
[1742990198843,0.27551699,632.16,631.02,1.18176292]
[1742990201045,0.27551699,632.16,631.03,0.26366777]
[1742990202446,0.31633056,632.25,631.03,0.26366777]
[1742990202847,0.27551263,632.15,631.03,0.26366777]
[1742990203050,0.31633056,632.25,631.15,1.18176292]
[1742990203449,0.31633056,632.25,631.16,0.26366376]
[1742990204151,0.27539598,632.24,631.16,0.26366376]
[1742990204351,0.31634057,632.23,631.15,1.18176292]
[1742990204944,0.423,632.22,631.15,1.18176292]
[1742990205453,0.423,632.22,631.23,1.18176292]
[1742990205949,0.27546356,632.21,631.23,1.18176292]
[1742990207450,0.27546356,632.21,631.1,1.18176292]
[1742990208447,0.423,632.22,631.1,1.18176292]
[1742990208952,0.27546901,632.21,631.11,0.26361978]
[1742990210852,0.27546901,632.21,631.19,1.18176292]
[1742990211053,0.27546901,632.21,631.2,0.26361978]
[1742990211552,0.423,632.22,631.2,0.26361978]
[1742990211758,0.27545811,632.2,631.2,0.26361978]
[1742990212658,0.27545811,632.2,631.38,1.18176292]
[1742990214554,0.423,632.22,631.36,1.18176292]
[1742990215259,0.27543849,632.21,631.36,1.18176292]
[1742990216554,0.27543849,632.21,631.3,1.18176292]
[1742990216759,0.27543849,632.21,631.31,0.26358543]
[1742990217559,0.423,632.22,631.31,0.26358543]
[1742990217760,0.27544612,632.2,631.31,0.26358543]
[1742990218654,0.27544612,632.2,631.32,0.26358543]
[1742990219057,0.27544612,632.2,631.33,0.26358411]
[1742990219258,0.27544612,632.2,631.29,1.18176292]
[1742990219460,0.27544612,632.2,631.3,0.26358418]
[1742990220461,0.423,632.22,631.3,0.26358418]
[1742990220857,0.423,632.22,631.28,0.26358418]
[1742990221065,0.423,632.22,631.29,0.26358418]
[1742990221262,0.423,632.22,631.3,0.26358418]
[1742990221463,0.423,632.22,631.31,0.26358418]
[1742990221663,0.2754483,632.21,631.32,0.26358418]
[1742990221862,0.2754483,632.21,631.28,0.26358418]
[1742990222163,0.2754483,632.21,631.29,0.26358418]
[1742990222363,0.2754483,632.21,631.26,0.26358418]
[1742990222563,0.2754483,632.21,631.27,0.26358418]
[1742990222763,0.2754483,632.21,631.28,0.26358418]
[1742990222962,0.2754483,632.21,631.26,0.26358418]
[1742990223263,0.2754483,632.21,631.29,0.26358418]
[1742990223458,0.2754483,632.21,631.3,0.26358418]
[1742990223664,0.423,632.22,631.26,0.26358418]
[1742990223860,0.423,632.22,631.27,0.2635851]
[1742990224059,5.3128302,633.3,631.28,0.2635851]
[1742990224258,0.29070033,633.29,631.26,0.2635851]
[1742990224461,0.29070033,633.28,631.27,0.2635851]
[1742990224659,0.29070033,633.27,631.26,0.2635851]
[1742990224864,0.29070033,633.26,631.27,0.2635851]
[1742990225064,2.4163119,633.2,631.31,1.18176292]
[1742990225363,0.29070033,633.19,631.32,0.2635851]
[1742990225564,0.29070033,633.18,631.32,0.2635851]
[1742990225765,0.29070033,633.17,631.32,0.2635851]
[1742990225967,0.29070033,633.16,631.32,0.2635851]
[1742990226165,0.29070033,633.15,631.32,0.2635851]
[1742990226365,0.29070033,633.14,631.32,0.2635851]
[1742990226562,0.29070033,633.13,631.32,0.2635851]
[1742990226766,0.29070033,633.12,631.32,0.2635851]
[1742990226966,0.71370033,633.12,631.32,0.2635851]
[1742990227166,0.29070033,633.11,631.32,0.2635851]
[1742990227368,0.29070033,633.1,631.32,0.2635851]
[1742990227571,0.29070033,633.09,631.32,0.2635851]
[1742990227764,0.29070033,633.08,631.32,0.2635851]
[1742990227966,0.29070033,633.07,631.32,0.2635851]
[1742990228166,0.29070033,633.06,631.32,0.2635851]
[1742990228362,0.29070033,633.05,631.32,0.2635851]
[1742990228668,0.29070033,633.04,631.32,0.2635851]
[1742990228869,0.29070033,633.03,631.35,1.18176292]
[1742990229072,0.29070033,633.02,631.35,1.18176292]
[1742990229266,0.29070033,633.01,631.36,0.2635851]
[1742990229569,0.29070033,633.0,631.36,0.2635851]
[1742990229768,0.29070033,632.99,631.36,0.2635851]
[1742990229971,0.29070033,632.98,631.36,0.2635851]
[1742990230370,0.29070033,632.97,631.36,0.2635851]
[1742990230671,0.27534695,633.0,631.36,0.2635851]
[1742990230672,0.29070033,632.96,631.36,0.2635851]
[1742990230867,0.29070033,632.95,631.33,0.2635851]
[1742990231073,0.29070033,632.94,631.34,0.2635851]
[1742990231274,0.29070033,632.93,631.33,0.2635851]
[1742990231472,0.29070033,632.93,631.32,1.18176292]
[1742990231473,0.29070033,632.92,631.34,0.2635851]
[1742990231676,0.27534695,633.0,631.32,1.18176292]
[1742990231876,0.29070219,632.99,631.33,0.26358692]
[1742990232177,0.29070219,632.98,631.33,0.26358692]
[1742990232476,0.29070219,632.97,631.33,0.26358692]
[1742990232776,0.29070219,632.96,631.33,0.26358692]
[1742990232976,0.29070219,632.95,631.33,0.26358692]
[1742990233170,0.29070219,632.94,631.33,0.26358692]
[1742990233373,0.29070219,632.93,631.34,0.26358692]
[1742990233572,0.29070219,632.92,631.35,0.26358692]
[1742990233770,0.29070219,632.91,631.36,0.26358692]
[1742990234077,0.29070219,632.9,631.37,0.26358692]
[1742990234276,0.29070219,632.96,631.33,0.26358692]
[1742990234477,0.29070219,632.95,631.34,0.26358692]
[1742990234674,0.29070219,632.94,631.33,0.26358692]
[1742990234871,0.29070219,632.93,631.34,0.26358692]
[1742990235071,0.29070219,632.92,631.35,0.26358692]
[1742990235274,0.29070219,632.91,631.35,0.26358692]
[1742990235475,0.29070219,632.96,631.35,0.26358692]
[1742990235674,0.29070219,632.95,631.35,0.26358692]
[1742990235874,0.27534695,632.9,631.35,0.26358692]
[1742990236077,0.29070219,632.89,631.35,0.26358692]
[1742990236878,0.29070219,632.88,631.35,0.26358692]
[1742990237076,0.29070219,632.87,631.35,0.26358692]
[1742990237277,0.29070219,632.86,631.35,0.26358692]
[1742990237477,0.29070219,632.85,631.38,1.18176292]
[1742990237679,0.29070219,632.84,631.39,0.26358692]
[1742990237876,0.29070219,632.83,631.39,0.26358692]
[1742990238079,0.29069464,632.82,631.4,0.26357951]
[1742990238272,0.29069464,632.81,631.41,0.26357951]
[1742990238478,0.29069464,632.8,631.42,0.26357951]
[1742990238680,0.29069464,632.79,631.43,0.26357951]
[1742990238978,0.29069464,632.78,631.44,0.26357951]
[1742990239178,0.29069464,632.78,631.46,1.18176292]
[1742990240480,0.423,632.77,631.46,1.18176292]
[1742990240676,0.29069464,632.76,631.46,1.18176292]
[1742990241079,0.29069464,632.76,631.49,1.18176292]
[1742990242681,0.423,632.77,631.49,1.18176292]
[1742990242880,0.29069814,632.76,631.48,1.18176292]
[1742990244381,0.29069842,632.75,631.48,1.18176292]
[1742990244581,0.29069842,632.74,631.48,1.18176292]
[1742990244775,0.29069842,632.73,631.48,1.18176292]
[1742990244973,0.29069842,632.72,631.48,1.18176292]
[1742990245178,0.29069842,632.76,631.48,1.18176292]
[1742990245382,0.29069842,632.75,631.49,1.18176292]
[1742990245683,0.29069842,632.74,631.49,1.18176292]
[1742990248083,0.29069842,632.74,631.53,1.18176292]
[1742990250284,0.29069842,632.74,631.43,1.18176292]
[1742990250681,0.29073009,632.73,631.43,1.18176292]
[1742990250885,0.27538073,632.73,631.43,1.18176292]
[1742990251088,0.29073009,632.72,631.43,1.18176292]
[1742990252287,0.27538073,632.73,631.43,1.18176292]
[1742990252288,0.29073092,632.71,631.43,1.18176292]
[1742990252489,0.29073092,632.72,631.43,1.18176292]
[1742990252689,0.29073092,632.71,631.4,1.18176292]
[1742990252888,0.29073092,632.72,631.4,1.18176292]
[1742990253088,0.29073092,632.71,631.4,1.18176292]
[1742990253283,0.29073092,632.72,631.4,1.18176292]
[1742990254790,0.29073092,632.72,631.29,1.18176292]
[1742990254992,0.27538073,632.73,631.29,1.18176292]
[1742990255190,0.29075575,632.72,631.29,1.18176292]
[1742990256691,0.29075575,632.76,631.29,1.18176292]
[1742990256893,0.31608559,632.74,631.29,1.18176292]
[1742990257086,0.29075565,632.73,631.24,1.18176292]
[1742990257289,0.31610058,632.71,631.24,1.18176292]
[1742990257487,0.29075565,632.7,631.24,1.18176292]
[1742990257691,0.31611557,632.68,631.24,1.18176292]
[1742990257890,0.29075565,632.67,631.24,1.18176292]
[1742990258191,0.31611557,632.68,631.24,1.18176292]
[1742990258192,0.31613056,632.65,631.25,0.26364009]
[1742990258392,0.29075565,632.64,631.25,0.26364009]
[1742990258592,0.31614555,632.62,631.25,0.26364009]
[1742990258793,0.29075565,632.61,631.25,0.26364009]
[1742990259392,0.29075565,632.6,631.25,0.26364009]
[1742990259592,0.31616554,632.58,631.25,0.26364009]
[1742990259889,0.29075565,632.57,631.34,1.18176292]
[1742990260096,0.31618053,632.55,631.34,1.18176292]
[1742990260295,0.29075565,632.54,631.34,1.18176292]
[1742990260489,0.31619553,632.52,631.34,1.18176292]
[1742990260693,0.29075565,632.51,631.34,1.18176292]
[1742990260894,0.31621053,632.49,631.34,1.18176292]
[1742990261095,0.29075565,632.48,631.34,1.18176292]
[1742990261294,0.31622553,632.46,631.34,1.18176292]
[1742990261593,0.29075565,632.45,631.34,1.18176292]
[1742990261795,0.31624053,632.43,631.34,1.18176292]
[1742990261995,0.29075565,632.42,631.34,1.18176292]
[1742990262195,0.31625553,632.4,631.34,1.18176292]
[1742990262396,0.29075565,632.39,631.34,1.18176292]
[1742990262596,0.31627053,632.37,631.34,1.18176292]